[Event "*** Titled Tuesday Blitz"]
[Site "Chess.com"]
[Date "2020.05.26"]
[Round "1"]
[White "vladislavkovalev"]
[Black "pastouche06"]
[Result "1-0"]
[WhiteElo "2887"]
[BlackElo "2427"]
[TimeControl "180+1"]
[EndTime "10:07:51 PDT"]
[Termination "vladislavkovalev won on time"]

1. e4 {[%clk 0:03:00.9]} 1... c6 {[%clk 0:02:58.7]} 2. Nf3 {[%clk 0:03:00.9]}
2... d5 {[%clk 0:02:58.8]} 3. Nc3 {[%clk 0:03:01.8]} 3... dxe4 {[%clk
0:02:55.5]} 4. Nxe4 {[%clk 0:03:02.7]} 4... Nf6 {[%clk 0:02:55.9]} 5. Qe2 {[%clk
0:03:03]} 5... Nxe4 {[%clk 0:02:55.1]} 6. Qxe4 {[%clk 0:03:03.9]} 6... Qa5
{[%clk 0:02:55.4]} 7. Bc4 {[%clk 0:03:03.1]} 7... Bf5 {[%clk 0:02:53.8]} 8. Qe3
{[%clk 0:02:43.4]} 8... e6 {[%clk 0:02:46.7]} 9. O-O {[%clk 0:02:43]} 9... Nd7
{[%clk 0:02:29]} 10. c3 {[%clk 0:02:36.4]} 10... Be7 {[%clk 0:02:24.1]} 11. d4
{[%clk 0:02:22.9]} 11... O-O {[%clk 0:02:22.1]} 12. a4 {[%clk 0:02:22.5]} 12...
Qc7 {[%clk 0:02:11.6]} 13. a5 {[%clk 0:02:20.6]} 13... b5 {[%clk 0:01:57.1]} 14.
Be2 {[%clk 0:02:06.8]} 14... a6 {[%clk 0:01:54.1]} 15. b4 {[%clk 0:02:05.5]}
15... Nf6 {[%clk 0:01:52.9]} 16. Ne5 {[%clk 0:02:05.6]} 16... Bd6 {[%clk
0:01:41.2]} 17. f4 {[%clk 0:01:59.3]} 17... Nd5 {[%clk 0:01:36.4]} 18. Qf3
{[%clk 0:01:57.1]} 18... f6 {[%clk 0:01:17.4]} 19. Nd3 {[%clk 0:01:56.8]} 19...
Rae8 {[%clk 0:01:17.8]} 20. Bd2 {[%clk 0:01:27.9]} 20... e5 {[%clk 0:00:54.9]}
21. fxe5 {[%clk 0:01:27]} 21... fxe5 {[%clk 0:00:55.8]} 22. Nxe5 {[%clk
0:01:22.6]} 22... Bxe5 {[%clk 0:00:55.1]} 23. dxe5 {[%clk 0:01:23.2]} 23... Qxe5
{[%clk 0:00:54.9]} 24. Rae1 {[%clk 0:01:20.9]} 24... Bg6 {[%clk 0:00:40.2]} 25.
Qg4 {[%clk 0:01:08.6]} 25... Nf6 {[%clk 0:00:05.9]} 26. Qf4 {[%clk 0:00:38.3]}
26... Ne4 {[%clk 0:00:04.9]} 27. Qxe5 {[%clk 0:00:22.7]} 27... Rxe5 {[%clk
0:00:05.8]} 28. Rxf8+ {[%clk 0:00:20.9]} 28... Kxf8 {[%clk 0:00:06.7]} 29. Rf1+
{[%clk 0:00:21.5]} 29... Rf5 {[%clk 0:00:02.9]} 30. Rxf5+ {[%clk 0:00:20.8]}
30... Bxf5 {[%clk 0:00:03.8]} 31. Be1 {[%clk 0:00:21.7]} 31... Ke7 {[%clk
0:00:03.3]} 32. g4 {[%clk 0:00:21]} 32... Bg6 {[%clk 0:00:02.8]} 33. Kg2 {[%clk
0:00:21.2]} 33... Ke6 {[%clk 0:00:03.2]} 34. Kf3 {[%clk 0:00:21.7]} 34... Kd5
{[%clk 0:00:03.6]} 35. Ke3 {[%clk 0:00:21.7]} 35... Nd6 {[%clk 0:00:02.5]} 36.
h4 {[%clk 0:00:21]} 36... Nc4+ {[%clk 0:00:02.2]} 37. Kf4 {[%clk 0:00:21.5]}
37... Be4 {[%clk 0:00:02.2]} 38. h5 {[%clk 0:00:21.9]} 38... h6 {[%clk
0:00:02.2]} 39. Bf2 {[%clk 0:00:19.1]} 39... Nd6 {[%clk 0:00:02.4]} 40. Bd4
{[%clk 0:00:19]} 40... Ne8 {[%clk 0:00:02.1]} 41. g5 {[%clk 0:00:14.9]} 41...
hxg5+ {[%clk 0:00:02.1]} 42. Kxg5 {[%clk 0:00:15.8]} 42... Ke6 {[%clk
0:00:01.4]} 43. Bg4+ {[%clk 0:00:14.4]} 43... Kf7 {[%clk 0:00:01.6]} 44. Bc8
{[%clk 0:00:13.9]} 44... Nd6 {[%clk 0:00:02.1]} 45. Bxa6 {[%clk 0:00:12.4]}
45... Bf5 {[%clk 0:00:02.1]} 46. Kf4 {[%clk 0:00:12.7]} 46... Ke6 {[%clk
0:00:01.7]} 47. Bxg7 {[%clk 0:00:12]} 1-0

[Event "*** Titled Tuesday Blitz"]
[Site "Chess.com"]
[Date "2020.05.26"]
[Round "1"]
[White "konradrutkowski"]
[Black "AnthonyWirig"]
[Result "0-1"]
[WhiteElo "2315"]
[BlackElo "2678"]
[TimeControl "180+1"]
[EndTime "10:07:51 PDT"]
[Termination "AnthonyWirig won by resignation"]

1. e4 {[%clk 0:03:00.9]} 1... c5 {[%clk 0:02:57]} 2. Nf3 {[%clk 0:03:00.7]} 2...
e6 {[%clk 0:02:56.6]} 3. d3 {[%clk 0:03:00]} 3... Nc6 {[%clk 0:02:54.1]} 4. g3
{[%clk 0:03:00.1]} 4... g6 {[%clk 0:02:50.5]} 5. Bg2 {[%clk 0:03:00.2]} 5... Bg7
{[%clk 0:02:50.7]} 6. O-O {[%clk 0:03:00.8]} 6... Nge7 {[%clk 0:02:50.8]} 7. c3
{[%clk 0:03:01]} 7... e5 {[%clk 0:02:47.8]} 8. a3 {[%clk 0:02:43.8]} 8... O-O
{[%clk 0:02:44.7]} 9. b4 {[%clk 0:02:43.1]} 9... d6 {[%clk 0:02:44.7]} 10. Bb2
{[%clk 0:02:20.5]} 10... b6 {[%clk 0:02:35.3]} 11. Nbd2 {[%clk 0:02:05.7]} 11...
h6 {[%clk 0:02:32.4]} 12. b5 {[%clk 0:02:00.1]} 12... Na5 {[%clk 0:02:30.9]} 13.
d4 {[%clk 0:02:00.3]} 13... a6 {[%clk 0:02:02.1]} 14. a4 {[%clk 0:01:54.3]}
14... Be6 {[%clk 0:01:43.9]} 15. Re1 {[%clk 0:01:50.4]} 15... Kh7 {[%clk
0:01:37.6]} 16. Bf1 {[%clk 0:01:39.8]} 16... axb5 {[%clk 0:01:34.8]} 17. axb5
{[%clk 0:01:39.6]} 17... Qc7 {[%clk 0:01:24.9]} 18. Ra3 {[%clk 0:00:27.6]} 18...
Rae8 {[%clk 0:01:02.1]} 19. dxe5 {[%clk 0:00:25]} 19... dxe5 {[%clk 0:00:59.9]}
20. c4 {[%clk 0:00:24.9]} 20... Rd8 {[%clk 0:00:53.7]} 21. Qa1 {[%clk
0:00:24.4]} 21... f6 {[%clk 0:00:46.9]} 22. Bc3 {[%clk 0:00:14.3]} 22... Nb7
{[%clk 0:00:41.9]} 23. Rb1 {[%clk 0:00:13.3]} 23... Nc8 {[%clk 0:00:40.1]} 24.
Rb2 {[%clk 0:00:13.5]} 24... Rd7 {[%clk 0:00:26.4]} 25. Rba2 {[%clk 0:00:13.6]}
25... Rfd8 {[%clk 0:00:23.9]} 26. Ra8 {[%clk 0:00:13.6]} 26... Ncd6 {[%clk
0:00:23.1]} 27. Rxd8 {[%clk 0:00:12.9]} 27... Rxd8 {[%clk 0:00:24]} 28. Ra8
{[%clk 0:00:12.6]} 28... Nc8 {[%clk 0:00:18.9]} 29. h4 {[%clk 0:00:11.4]} 29...
h5 {[%clk 0:00:18.6]} 30. Kg2 {[%clk 0:00:11.7]} 30... Bg4 {[%clk 0:00:18]} 31.
Qa6 {[%clk 0:00:11]} 31... Nbd6 {[%clk 0:00:17.6]} 32. Qa2 {[%clk 0:00:08.3]}
32... Be6 {[%clk 0:00:17.3]} 33. Be2 {[%clk 0:00:08.4]} 33... Nxb5 {[%clk
0:00:16.9]} 34. Qb3 {[%clk 0:00:07.1]} 34... Nd4 {[%clk 0:00:16.8]} 35. Bxd4
{[%clk 0:00:06.6]} 35... cxd4 {[%clk 0:00:17.1]} 36. Bd3 {[%clk 0:00:07.2]}
36... Bf8 {[%clk 0:00:16.6]} 37. Qb5 {[%clk 0:00:06.8]} 37... Bc5 {[%clk
0:00:16.5]} 38. Qa6 {[%clk 0:00:06.8]} 38... Kg7 {[%clk 0:00:13.6]} 39. Ne1
{[%clk 0:00:06.9]} 39... Bf7 {[%clk 0:00:11.8]} 40. Bc2 {[%clk 0:00:07.2]} 40...
Nd6 {[%clk 0:00:11.5]} 41. Nd3 {[%clk 0:00:07.8]} 41... Rxa8 {[%clk 0:00:11.2]}
42. Qxa8 {[%clk 0:00:08.7]} 42... Nxc4 {[%clk 0:00:11.3]} 43. Nxc4 {[%clk
0:00:08.3]} 43... Bxc4 {[%clk 0:00:12.2]} 44. Nxc5 {[%clk 0:00:07.4]} 44... bxc5
{[%clk 0:00:13.1]} 45. Qa3 {[%clk 0:00:06.7]} 45... Bf7 {[%clk 0:00:13.1]} 46.
Ba4 {[%clk 0:00:06.7]} 46... c4 {[%clk 0:00:13.4]} 47. Qb4 {[%clk 0:00:06.6]}
47... c3 {[%clk 0:00:13.4]} 48. Bc2 {[%clk 0:00:07]} 48... Qc4 {[%clk
0:00:13.2]} 49. Bd3 {[%clk 0:00:07.9]} 49... Qxb4 {[%clk 0:00:12.9]} 0-1

[Event "*** Titled Tuesday Blitz"]
[Site "Chess.com"]
[Date "2020.05.26"]
[Round "1"]
[White "luizwas"]
[Black "UCantHandleDenker"]
[Result "0-1"]
[WhiteElo "1824"]
[BlackElo "2464"]
[TimeControl "180+1"]
[EndTime "10:07:51 PDT"]
[Termination "UCantHandleDenker won by checkmate"]

1. e4 {[%clk 0:03:00.9]} 1... d6 {[%clk 0:02:52.7]} 2. d4 {[%clk 0:03:00.1]}
2... Nf6 {[%clk 0:02:52.1]} 3. Nc3 {[%clk 0:02:59.7]} 3... e5 {[%clk 0:02:51.9]}
4. dxe5 {[%clk 0:02:55.4]} 4... dxe5 {[%clk 0:02:51.2]} 5. Qxd8+ {[%clk
0:02:54.6]} 5... Kxd8 {[%clk 0:02:50.9]} 6. Bg5 {[%clk 0:02:55]} 6... c6 {[%clk
0:02:49.8]} 7. O-O-O+ {[%clk 0:02:54.5]} 7... Ke8 {[%clk 0:02:49]} 8. Nf3 {[%clk
0:02:48.1]} 8... Nbd7 {[%clk 0:02:47.3]} 9. Bxf6 {[%clk 0:02:42.7]} 9... gxf6
{[%clk 0:02:45.7]} 10. Bc4 {[%clk 0:02:39.8]} 10... Bc5 {[%clk 0:02:43.4]} 11.
Rd2 {[%clk 0:02:37.9]} 11... Rg8 {[%clk 0:02:36.6]} 12. g3 {[%clk 0:02:32.3]}
12... b5 {[%clk 0:02:32.1]} 13. Bb3 {[%clk 0:02:26.7]} 13... a5 {[%clk
0:02:30.1]} 14. a3 {[%clk 0:02:24.7]} 14... Ke7 {[%clk 0:02:29.2]} 15. Rhd1
{[%clk 0:02:17.2]} 15... Nb6 {[%clk 0:02:27.2]} 16. Nh4 {[%clk 0:02:04.4]} 16...
Be6 {[%clk 0:02:04.8]} 17. Nf5+ {[%clk 0:01:58.9]} 17... Bxf5 {[%clk 0:02:04.1]}
18. exf5 {[%clk 0:01:59.8]} 18... Kf8 {[%clk 0:01:23.5]} 19. Rd8+ {[%clk
0:01:57.9]} 19... Kg7 {[%clk 0:01:22.9]} 20. Rxa8 {[%clk 0:01:51.7]} 20... Rxa8
{[%clk 0:01:21.9]} 21. Ne4 {[%clk 0:01:49.5]} 21... Be7 {[%clk 0:01:21.9]} 22.
Nd6 {[%clk 0:01:42.9]} 22... Bxd6 {[%clk 0:01:08.3]} 23. Rxd6 {[%clk 0:01:43.8]}
23... Rc8 {[%clk 0:01:08.8]} 24. c3 {[%clk 0:01:21.5]} 24... Rc7 {[%clk
0:01:08]} 25. Bd1 {[%clk 0:01:19.4]} 25... Nc8 {[%clk 0:01:05.5]} 26. Rd8 {[%clk
0:01:13.4]} 26... Ne7 {[%clk 0:01:05.5]} 27. g4 {[%clk 0:01:08.2]} 27... Nd5
{[%clk 0:01:04.6]} 28. Bf3 {[%clk 0:01:04.9]} 28... Nf4 {[%clk 0:01:01.2]} 29.
Rd6 {[%clk 0:01:01.4]} 29... c5 {[%clk 0:01:00.7]} 30. Rb6 {[%clk 0:00:44.8]}
30... b4 {[%clk 0:00:56.4]} 31. axb4 {[%clk 0:00:42.9]} 31... cxb4 {[%clk
0:00:55.3]} 32. Kc2 {[%clk 0:00:37]} 32... Rc5 {[%clk 0:00:52.3]} 33. Rb7 {[%clk
0:00:29.2]} 33... Nh3 {[%clk 0:00:46.2]} 34. Bg2 {[%clk 0:00:18.2]} 34... Nxf2
{[%clk 0:00:45.5]} 35. Kb3 {[%clk 0:00:17.9]} 35... bxc3 {[%clk 0:00:44.2]} 36.
bxc3 {[%clk 0:00:18.8]} 36... Nxg4 {[%clk 0:00:44.1]} 37. h3 {[%clk 0:00:17.5]}
37... Ne3 {[%clk 0:00:43.8]} 38. Be4 {[%clk 0:00:16.8]} 38... h5 {[%clk
0:00:44]} 39. Rd7 {[%clk 0:00:15.1]} 39... h4 {[%clk 0:00:43.5]} 40. Bb7 {[%clk
0:00:12.2]} 40... Kh6 {[%clk 0:00:41.3]} 41. Be4 {[%clk 0:00:11.9]} 41... Kg5
{[%clk 0:00:40.4]} 42. Rxf7 {[%clk 0:00:11.3]} 42... Nd1 {[%clk 0:00:40.2]} 43.
Rg7+ {[%clk 0:00:11.1]} 43... Kf4 {[%clk 0:00:40]} 44. Rg4+ {[%clk 0:00:11.7]}
44... Ke3 {[%clk 0:00:39.1]} 45. Bc2 {[%clk 0:00:11.5]} 45... Rxc3+ {[%clk
0:00:38.1]} 46. Ka4 {[%clk 0:00:09.6]} 46... Rxc2 {[%clk 0:00:38.1]} 47. Rxh4
{[%clk 0:00:10.1]} 47... Rf2 {[%clk 0:00:37.2]} 48. Rh6 {[%clk 0:00:10]} 48...
Rxf5 {[%clk 0:00:36.8]} 49. Kxa5 {[%clk 0:00:10.6]} 49... e4+ {[%clk 0:00:35]}
50. Kb6 {[%clk 0:00:10]} 50... Kf2 {[%clk 0:00:34.8]} 51. h4 {[%clk 0:00:09.7]}
51... e3 {[%clk 0:00:34.9]} 52. Rg6 {[%clk 0:00:09.5]} 52... e2 {[%clk
0:00:34.9]} 53. h5 {[%clk 0:00:08.7]} 53... e1=Q {[%clk 0:00:34]} 54. h6 {[%clk
0:00:09.6]} 54... Qe3+ {[%clk 0:00:33.5]} 55. Kc7 {[%clk 0:00:09.4]} 55... Qe7+
{[%clk 0:00:31.9]} 56. Kc8 {[%clk 0:00:08.7]} 56... Rc5+ {[%clk 0:00:31.3]} 57.
Kb8 {[%clk 0:00:07.7]} 57... Qc7+ {[%clk 0:00:31.5]} 58. Ka8 {[%clk 0:00:08.1]}
58... Ra5# {[%clk 0:00:32]} 0-1

[Event "*** Titled Tuesday Blitz"]
[Site "Chess.com"]
[Date "2020.05.26"]
[Round "1"]
[White "iLuusions"]
[Black "FeketeBarika"]
[Result "1-0"]
[WhiteElo "2587"]
[BlackElo "2243"]
[TimeControl "180+1"]
[EndTime "10:07:52 PDT"]
[Termination "iLuusions won by resignation"]

1. d4 {[%clk 0:03:00.9]} 1... e6 {[%clk 0:02:54.5]} 2. c4 {[%clk 0:02:59.8]}
2... Nf6 {[%clk 0:02:47.4]} 3. Nf3 {[%clk 0:02:58.9]} 3... d5 {[%clk 0:02:45.9]}
4. g3 {[%clk 0:02:57.5]} 4... Be7 {[%clk 0:02:45.3]} 5. Bg2 {[%clk 0:02:57.1]}
5... O-O {[%clk 0:02:35.9]} 6. O-O {[%clk 0:02:58]} 6... dxc4 {[%clk 0:02:32.6]}
7. Qc2 {[%clk 0:02:58]} 7... a6 {[%clk 0:02:27.2]} 8. a4 {[%clk 0:02:51]} 8...
Bd7 {[%clk 0:02:26.8]} 9. Qxc4 {[%clk 0:02:51.1]} 9... Bc6 {[%clk 0:02:26.1]}
10. Bf4 {[%clk 0:02:51.7]} 10... Nbd7 {[%clk 0:02:22.1]} 11. Nc3 {[%clk
0:02:45.5]} 11... Nb6 {[%clk 0:02:16.6]} 12. Qd3 {[%clk 0:02:45.8]} 12... Nbd5
{[%clk 0:02:14.3]} 13. Bg5 {[%clk 0:02:44.3]} 13... h6 {[%clk 0:02:08.5]} 14.
Bxf6 {[%clk 0:02:39.6]} 14... Bxf6 {[%clk 0:02:04]} 15. e4 {[%clk 0:02:37.3]}
15... Nb4 {[%clk 0:02:04.1]} 16. Qc4 {[%clk 0:02:33.7]} 16... a5 {[%clk
0:02:04.5]} 17. Rad1 {[%clk 0:02:30.2]} 17... Qd7 {[%clk 0:01:54]} 18. b3 {[%clk
0:02:12.9]} 18... Rfd8 {[%clk 0:01:43.2]} 19. Rd2 {[%clk 0:01:51]} 19... Bg5
{[%clk 0:01:35]} 20. Nxg5 {[%clk 0:01:30.6]} 20... hxg5 {[%clk 0:01:35.9]} 21.
d5 {[%clk 0:01:20.6]} 21... exd5 {[%clk 0:01:30.8]} 22. exd5 {[%clk 0:01:20.3]}
22... Qe7 {[%clk 0:01:20.1]} 23. Re2 {[%clk 0:01:09.3]} 23... Qf6 {[%clk
0:00:46.7]} 24. dxc6 {[%clk 0:01:05.2]} 24... bxc6 {[%clk 0:00:43.4]} 25. Ne4
{[%clk 0:01:03.6]} 25... Qg6 {[%clk 0:00:35.2]} 26. Rfe1 {[%clk 0:00:59.9]}
26... Rab8 {[%clk 0:00:28.8]} 27. Nc5 {[%clk 0:00:56.9]} 27... Qd6 {[%clk
0:00:15.2]} 28. Re7 {[%clk 0:00:49.8]} 28... Rf8 {[%clk 0:00:14.2]} 29. Rd7
{[%clk 0:00:47.2]} 29... Qf6 {[%clk 0:00:12.9]} 30. Qd4 {[%clk 0:00:42]} 30...
Qg6 {[%clk 0:00:12.4]} 31. Be4 {[%clk 0:00:40.5]} 31... Qh5 {[%clk 0:00:12.4]}
32. Rxc7 {[%clk 0:00:38.2]} 32... Rbd8 {[%clk 0:00:10.4]} 33. Rd7 {[%clk
0:00:38.2]} 33... Rxd7 {[%clk 0:00:10.2]} 34. Qxd7 {[%clk 0:00:39.1]} 34... Qh6
{[%clk 0:00:08.5]} 35. Bf5 {[%clk 0:00:35.9]} 35... Qf6 {[%clk 0:00:08]} 36. Re8
{[%clk 0:00:35.4]} 36... g6 {[%clk 0:00:05.4]} 37. Rxf8+ {[%clk 0:00:29.1]}
37... Kxf8 {[%clk 0:00:06.3]} 38. Bg4 {[%clk 0:00:29.2]} 38... Kg7 {[%clk
0:00:06.3]} 39. Ne6+ {[%clk 0:00:24.9]} 39... Kh6 {[%clk 0:00:06.5]} 40. Qd4
{[%clk 0:00:23.5]} 40... Qxd4 {[%clk 0:00:04]} 41. Nxd4 {[%clk 0:00:24.4]} 41...
f5 {[%clk 0:00:04.5]} 42. Bf3 {[%clk 0:00:24.4]} 42... c5 {[%clk 0:00:04.8]} 43.
Ne6 {[%clk 0:00:24.8]} 43... g4 {[%clk 0:00:04.5]} 44. Be2 {[%clk 0:00:24.1]}
44... g5 {[%clk 0:00:04.7]} 45. Nxc5 {[%clk 0:00:24.3]} 45... Kg6 {[%clk
0:00:05]} 46. Nb7 {[%clk 0:00:24.7]} 46... Nc6 {[%clk 0:00:04.5]} 47. Bb5 {[%clk
0:00:24.9]} 47... Nd4 {[%clk 0:00:04.5]} 48. Nxa5 {[%clk 0:00:25.5]} 48... Nxb5
{[%clk 0:00:04.4]} 49. axb5 {[%clk 0:00:25.7]} 1-0

[Event "*** Titled Tuesday Blitz"]
[Site "Chess.com"]
[Date "2020.05.26"]
[Round "1"]
[White "HouseOfDurin"]
[Black "ama18"]
[Result "0-1"]
[WhiteElo "2045"]
[BlackElo "2487"]
[TimeControl "180+1"]
[EndTime "10:07:57 PDT"]
[Termination "ama18 won on time"]

1. d4 {[%clk 0:03:00.9]} 1... Nf6 {[%clk 0:02:58]} 2. Bg5 {[%clk 0:03:00.6]}
2... e6 {[%clk 0:02:54.4]} 3. e4 {[%clk 0:03:00]} 3... h6 {[%clk 0:02:53.4]} 4.
Bxf6 {[%clk 0:02:59.8]} 4... Qxf6 {[%clk 0:02:54.3]} 5. e5 {[%clk 0:03:00.4]}
5... Qd8 {[%clk 0:02:54]} 6. f4 {[%clk 0:03:00.6]} 6... c5 {[%clk 0:02:50.2]} 7.
d5 {[%clk 0:02:55.1]} 7... d6 {[%clk 0:02:48.7]} 8. dxe6 {[%clk 0:02:41.9]} 8...
Bxe6 {[%clk 0:02:48.1]} 9. Bb5+ {[%clk 0:02:41]} 9... Nc6 {[%clk 0:02:45.7]} 10.
Nc3 {[%clk 0:02:35.9]} 10... dxe5 {[%clk 0:02:40.4]} 11. Bxc6+ {[%clk
0:02:35.1]} 11... bxc6 {[%clk 0:02:38.4]} 12. Qxd8+ {[%clk 0:02:35.5]} 12...
Rxd8 {[%clk 0:02:38.7]} 13. fxe5 {[%clk 0:02:36.1]} 13... g5 {[%clk 0:02:26.2]}
14. h3 {[%clk 0:02:32.4]} 14... Bg7 {[%clk 0:02:07.8]} 15. Nf3 {[%clk
0:02:31.6]} 15... O-O {[%clk 0:01:51.2]} 16. Ne4 {[%clk 0:01:37.8]} 16... Bd5
{[%clk 0:01:41.1]} 17. Nxc5 {[%clk 0:01:37.3]} 17... Bxf3 {[%clk 0:01:38.8]} 18.
gxf3 {[%clk 0:01:38.2]} 18... Bxe5 {[%clk 0:01:39.3]} 19. Nd3 {[%clk 0:01:35.3]}
19... Bd4 {[%clk 0:01:29.6]} 20. Kd2 {[%clk 0:01:30.1]} 20... Bxb2 {[%clk
0:01:28.2]} 21. Rab1 {[%clk 0:01:22.1]} 21... Bd4 {[%clk 0:01:28]} 22. Rb7
{[%clk 0:01:02.5]} 22... Rfe8 {[%clk 0:01:23.8]} 23. h4 {[%clk 0:00:49.6]} 23...
c5 {[%clk 0:01:13]} 24. Rc7 {[%clk 0:00:42.4]} 24... Rc8 {[%clk 0:00:59.7]} 25.
Rxc8 {[%clk 0:00:26.6]} 25... Rxc8 {[%clk 0:01:00.6]} 26. hxg5 {[%clk 0:00:26]}
26... hxg5 {[%clk 0:01:00.2]} 27. c4 {[%clk 0:00:20.4]} 27... Rb8 {[%clk
0:00:55.3]} 28. Re1 {[%clk 0:00:16.5]} 28... Kf8 {[%clk 0:00:55.1]} 29. Kc2
{[%clk 0:00:14.5]} 29... Rb6 {[%clk 0:00:53.9]} 30. Re4 {[%clk 0:00:13.9]} 30...
Ra6 {[%clk 0:00:52.6]} 31. Kb3 {[%clk 0:00:12.4]} 31... Rb6+ {[%clk 0:00:52.9]}
32. Kc2 {[%clk 0:00:12.8]} 32... Rf6 {[%clk 0:00:52.7]} 33. f4 {[%clk 0:00:12]}
33... g4 {[%clk 0:00:52.5]} 34. Re2 {[%clk 0:00:10.5]} 34... g3 {[%clk
0:00:49.5]} 35. Rg2 {[%clk 0:00:10]} 35... Rg6 {[%clk 0:00:49.8]} 36. Kd2 {[%clk
0:00:06.7]} 36... Rg4 {[%clk 0:00:49.4]} 37. Ke2 {[%clk 0:00:06.9]} 37... Rh4
{[%clk 0:00:31.2]} 38. Kf3 {[%clk 0:00:07.8]} 38... Rh1 {[%clk 0:00:26.4]} 39.
Kxg3 {[%clk 0:00:06.7]} 39... Rd1 {[%clk 0:00:25.7]} 40. Ne5 {[%clk 0:00:03.5]}
40... Bxe5 {[%clk 0:00:25.3]} 41. fxe5 {[%clk 0:00:04.4]} 41... Rd4 {[%clk
0:00:25.6]} 42. Rc2 {[%clk 0:00:04.2]} 42... Ke7 {[%clk 0:00:25.9]} 43. Kf3
{[%clk 0:00:03.6]} 43... Ke6 {[%clk 0:00:26.5]} 44. Rb2 {[%clk 0:00:03.8]} 44...
Rxc4 {[%clk 0:00:26.1]} 45. Rb7 {[%clk 0:00:04.1]} 45... Ra4 {[%clk 0:00:25.2]}
46. Rc7 {[%clk 0:00:03.8]} 46... c4 {[%clk 0:00:25.2]} 47. Rc6+ {[%clk
0:00:03.4]} 47... Kxe5 {[%clk 0:00:25]} 48. Rc5+ {[%clk 0:00:03.7]} 48... Kd4
{[%clk 0:00:25.4]} 49. Rc7 {[%clk 0:00:03.5]} 49... c3 {[%clk 0:00:25.5]} 50.
Rxf7 {[%clk 0:00:03.2]} 50... Kd3 {[%clk 0:00:25.5]} 51. Rd7+ {[%clk 0:00:02.8]}
51... Kc2 {[%clk 0:00:25.9]} 52. Ke2 {[%clk 0:00:02.8]} 52... Rxa2 {[%clk
0:00:26.3]} 53. Ke1 {[%clk 0:00:02.2]} 53... Ra1+ {[%clk 0:00:26.1]} 0-1

[Event "*** Titled Tuesday Blitz"]
[Site "Chess.com"]
[Date "2020.05.26"]
[Round "1"]
[White "fridaywins"]
[Black "Ar4uha"]
[Result "0-1"]
[WhiteElo "2224"]
[BlackElo "2572"]
[TimeControl "180+1"]
[EndTime "10:08:00 PDT"]
[Termination "Ar4uha won by checkmate"]

1. e4 {[%clk 0:03:00.8]} 1... e6 {[%clk 0:03:00.3]} 2. d4 {[%clk 0:02:59.8]}
2... d5 {[%clk 0:03:00.7]} 3. Nc3 {[%clk 0:03:00.7]} 3... Bb4 {[%clk 0:02:59.8]}
4. Ne2 {[%clk 0:03:00]} 4... dxe4 {[%clk 0:02:59]} 5. a3 {[%clk 0:02:59.7]} 5...
Bxc3+ {[%clk 0:02:59.5]} 6. Nxc3 {[%clk 0:03:00.5]} 6... Nc6 {[%clk 0:03:00.4]}
7. Bb5 {[%clk 0:02:59]} 7... Ne7 {[%clk 0:02:59.5]} 8. O-O {[%clk 0:02:47.8]}
8... O-O {[%clk 0:02:58.9]} 9. Be3 {[%clk 0:02:29.3]} 9... f5 {[%clk 0:02:45.1]}
10. Bxc6 {[%clk 0:02:23.8]} 10... bxc6 {[%clk 0:02:39.6]} 11. Na4 {[%clk
0:02:13.8]} 11... f4 {[%clk 0:02:33.3]} 12. Bc1 {[%clk 0:02:12.1]} 12... f3
{[%clk 0:02:25.1]} 13. Nc5 {[%clk 0:02:09.9]} 13... Nf5 {[%clk 0:02:18.1]} 14.
c3 {[%clk 0:02:03.1]} 14... Qh4 {[%clk 0:01:34.1]} 15. gxf3 {[%clk 0:01:42.6]}
15... Qh3 {[%clk 0:01:34.1]} 16. Kh1 {[%clk 0:00:51.7]} 16... exf3 {[%clk
0:01:31.9]} 17. Rg1 {[%clk 0:00:51.1]} 17... Rf6 {[%clk 0:01:23.5]} 18. Bf4
{[%clk 0:00:48.1]} 18... Rg6 {[%clk 0:00:40.6]} 19. Rxg6 {[%clk 0:00:46.9]}
19... hxg6 {[%clk 0:00:41.5]} 20. Qg1 {[%clk 0:00:46.9]} 20... Kf7 {[%clk
0:00:41.9]} 21. Ne4 {[%clk 0:00:39.3]} 21... Qh5 {[%clk 0:00:25.2]} 22. Ng5+
{[%clk 0:00:38.6]} 22... Kg8 {[%clk 0:00:24.8]} 23. Be5 {[%clk 0:00:39.5]} 23...
Nh4 {[%clk 0:00:21.8]} 24. Qg3 {[%clk 0:00:34.7]} 24... Bd7 {[%clk 0:00:22.2]}
25. b4 {[%clk 0:00:33.8]} 25... Rf8 {[%clk 0:00:22.4]} 26. Rg1 {[%clk
0:00:34.1]} 26... c5 {[%clk 0:00:19.5]} 27. bxc5 {[%clk 0:00:31.9]} 27... Bc6
{[%clk 0:00:12.2]} 28. h3 {[%clk 0:00:32.8]} 28... Rf5 {[%clk 0:00:11.9]} 29.
Kh2 {[%clk 0:00:33.7]} 29... Ng2 {[%clk 0:00:11.8]} 30. Nxe6 {[%clk 0:00:31.1]}
30... Rf7 {[%clk 0:00:05.8]} 31. Nxg7 {[%clk 0:00:27.5]} 31... Rxg7 {[%clk
0:00:05.3]} 32. Bxg7 {[%clk 0:00:27.6]} 32... Bd7 {[%clk 0:00:04.8]} 33. Be5
{[%clk 0:00:24.8]} 33... c6 {[%clk 0:00:04]} 34. Rxg2 {[%clk 0:00:24.9]} 34...
fxg2 {[%clk 0:00:04]} 35. Qxg2 {[%clk 0:00:25.8]} 35... Qf5 {[%clk 0:00:03.3]}
36. Qg3 {[%clk 0:00:26.7]} 36... Kf7 {[%clk 0:00:03.4]} 37. f4 {[%clk
0:00:26.6]} 37... Be6 {[%clk 0:00:03.7]} 38. Qg2 {[%clk 0:00:26.5]} 38... Bd5
{[%clk 0:00:03.8]} 39. Qf2 {[%clk 0:00:27.4]} 39... Qe4 {[%clk 0:00:04]} 40. Kg3
{[%clk 0:00:27.4]} 40... Ke6 {[%clk 0:00:03.8]} 41. Kh4 {[%clk 0:00:28.3]} 41...
Qf5 {[%clk 0:00:04]} 42. Kg3 {[%clk 0:00:27.8]} 42... Qe4 {[%clk 0:00:03.9]} 43.
c4 {[%clk 0:00:28.1]} 43... Bxc4 {[%clk 0:00:03.7]} 44. f5+ {[%clk 0:00:28.5]}
44... gxf5 {[%clk 0:00:03.5]} 45. Qf4 {[%clk 0:00:28.5]} 45... Qe1+ {[%clk
0:00:04.1]} 46. Kg2 {[%clk 0:00:26.7]} 46... Bd5+ {[%clk 0:00:04.1]} 47. Kh2
{[%clk 0:00:26.7]} 47... Qh1+ {[%clk 0:00:04.5]} 48. Kg3 {[%clk 0:00:27]} 48...
Qe1+ {[%clk 0:00:05.4]} 49. Kh2 {[%clk 0:00:26.5]} 49... Be4 {[%clk 0:00:04.7]}
50. Qh6+ {[%clk 0:00:25.8]} 50... Kd5 {[%clk 0:00:05]} 51. Qg7 {[%clk
0:00:26.7]} 51... Kc4 {[%clk 0:00:05.5]} 52. Qf7+ {[%clk 0:00:26.3]} 52... Kc3
{[%clk 0:00:05.2]} 53. Qh5 {[%clk 0:00:25.5]} 53... Qf2# {[%clk 0:00:04.5]} 0-1